Workbook

Sheet NYRating1
B3: Rating Kyiv Winter Open
A11: № | B11: Имя | C11: Телефон | D11: Buy In | E11: ITM | F11: Rating point
A12: 1 | B12: Магнит Слава | D12: 5200 | E12: 31250 | F12: =Таблица1[[#This Row],[Buy In]]/100+Таблица1[[#This Row],[ITM]]/100 -> 364.5
A13: 2 | B13: Луговенко Дмитрий | D13: 3700 | E13: 26750 | F13: =Таблица1[[#This Row],[Buy In]]/100+Таблица1[[#This Row],[ITM]]/100 -> 304.5
A14: 3 | B14: Смирнов Виктор | D14: 8600 | E14: 14100 | F14: =Таблица1[[#This Row],[Buy In]]/100+Таблица1[[#This Row],[ITM]]/100 -> 227
A15: 4 | B15: Вячеслав Георгиевич | D15: 5400 | E15: 12500 | F15: =Таблица1[[#This Row],[Buy In]]/100+Таблица1[[#This Row],[ITM]]/100 -> 179
A16: 5 | B16: Матус Стас | D16: 9000 | E16: 8300 | F16: =Таблица1[[#This Row],[Buy In]]/100+Таблица1[[#This Row],[ITM]]/100 -> 173
A17: 6 | B17: Лысенко Олег | D17: 11300 | E17: 5700 | F17: =Таблица1[[#This Row],[Buy In]]/100+Таблица1[[#This Row],[ITM]]/100 -> 170
A18: 7 | B18: Опанасык Евгений | D18: 2000 | E18: 15000 | F18: =Таблица1[[#This Row],[Buy In]]/100+Таблица1[[#This Row],[ITM]]/100 -> 170
A19: 8 | B19: Кедровский Михаил | D19: 5500 | E19: 10000 | F19: =Таблица1[[#This Row],[Buy In]]/100+Таблица1[[#This Row],[ITM]]/100 -> 155
A20: 9 | B20: Галатенко Стас | D20: 4000 | E20: 11400 | F20: =Таблица1[[#This Row],[Buy In]]/100+Таблица1[[#This Row],[ITM]]/100 -> 154
A21: 10 | B21: Шкляр Ярослав | D21: 10800 | E21: 4300 | F21: =Таблица1[[#This Row],[Buy In]]/100+Таблица1[[#This Row],[ITM]]/100 -> 151
A22: 11 | B22: Гусейнов Абдул | D22: 7100 | E22: 7200 | F22: =Таблица1[[#This Row],[Buy In]]/100+Таблица1[[#This Row],[ITM]]/100 -> 143
A23: 12 | B23: Бархударов Борис | D23: 1700 | E23: 11300 | F23: =Таблица1[[#This Row],[Buy In]]/100+Таблица1[[#This Row],[ITM]]/100 -> 130
A24: 13 | B24: Костырко Николай | D24: 9000 | E24: 3900 | F24: =Таблица1[[#This Row],[Buy In]]/100+Таблица1[[#This Row],[ITM]]/100 -> 129
A25: 14 | B25: Карпов Сергей | D25: 2000 | E25: 10800 | F25: =Таблица1[[#This Row],[Buy In]]/100+Таблица1[[#This Row],[ITM]]/100 -> 128
A26: 15 | B26: Шишкин Ярик | D26: 12200 | F26: =Таблица1[[#This Row],[Buy In]]/100+Таблица1[[#This Row],[ITM]]/100 -> 122
A27: 16 | B27: Удовенко Олег | D27: 2000 | E27: 9200 | F27: =Таблица1[[#This Row],[Buy In]]/100+Таблица1[[#This Row],[ITM]]/100 -> 112
A28: 17 | B28: Богданов Ренат | D28: 3500 | E28: 7500 | F28: =Таблица1[[#This Row],[Buy In]]/100+Таблица1[[#This Row],[ITM]]/100 -> 110
A29: 18 | B29: Филинский Александр | D29: 4200 | E29: 6300 | F29: =Таблица1[[#This Row],[Buy In]]/100+Таблица1[[#This Row],[ITM]]/100 -> 105
A30: 19 | B30: Кравченко Дмитрий | D30: 4000 | E30: 5200 | F30: =Таблица1[[#This Row],[Buy In]]/100+Таблица1[[#This Row],[ITM]]/100 -> 92
A31: 20 | B31: Герц Андрей | D31: 3000 | E31: 5800 | F31: =Таблица1[[#This Row],[Buy In]]/100+Таблица1[[#This Row],[ITM]]/100 -> 88
A32: 21 | B32: Мельничук Павел | D32: 6400 | E32: 1700 | F32: =Таблица1[[#This Row],[Buy In]]/100+Таблица1[[#This Row],[ITM]]/100 -> 81
A33: 22 | B33: Третьяков Юра | D33: 8000 | F33: =Таблица1[[#This Row],[Buy In]]/100+Таблица1[[#This Row],[ITM]]/100 -> 80
A34: 23 | B34: Шкарбан Анатолий | D34: 3000 | E34: 5000 | F34: =Таблица1[[#This Row],[Buy In]]/100+Таблица1[[#This Row],[ITM]]/100 -> 80
A35: 24 | B35: Мирослав | D35: 2000 | E35: 5700 | F35: =Таблица1[[#This Row],[Buy In]]/100+Таблица1[[#This Row],[ITM]]/100 -> 77
A36: 25 | B36: Стукалин Игорь | D36: 1200 | E36: 6500 | F36: =Таблица1[[#This Row],[Buy In]]/100+Таблица1[[#This Row],[ITM]]/100 -> 77
A37: 26 | B37: Ткаченко Валентин | D37: 1800 | E37: 5800 | F37: =Таблица1[[#This Row],[Buy In]]/100+Таблица1[[#This Row],[ITM]]/100 -> 76
A38: 27 | B38: Павлов Олег | D38: 7400 | F38: =Таблица1[[#This Row],[Buy In]]/100+Таблица1[[#This Row],[ITM]]/100 -> 74
A39: 28 | B39: Клименко Сергей | D39: 3000 | E39: 3700 | F39: =Таблица1[[#This Row],[Buy In]]/100+Таблица1[[#This Row],[ITM]]/100 -> 67
A40: 29 | B40: Казимиренко Сергей | D40: 3000 | E40: 3400 | F40: =Таблица1[[#This Row],[Buy In]]/100+Таблица1[[#This Row],[ITM]]/100 -> 64
A41: 30 | B41: Лавренчук Андрей | D41: 6200 | F41: =Таблица1[[#This Row],[Buy In]]/100+Таблица1[[#This Row],[ITM]]/100 -> 62
A42: 31 | B42: Балинский Сергей | D42: 6000 | F42: =Таблица1[[#This Row],[Buy In]]/100+Таблица1[[#This Row],[ITM]]/100 -> 60
A43: 32 | B43: Водяник Роман | D43: 3000 | E43: 2950 | F43: =Таблица1[[#This Row],[Buy In]]/100+Таблица1[[#This Row],[ITM]]/100 -> 59.5
A44: 33 | B44: Жирнов Александр | D44: 5800 | F44: =Таблица1[[#This Row],[Buy In]]/100+Таблица1[[#This Row],[ITM]]/100 -> 58
A45: 34 | B45: Бардовская Таисия | D45: 2200 | E45: 3400 | F45: =Таблица1[[#This Row],[Buy In]]/100+Таблица1[[#This Row],[ITM]]/100 -> 56
A46: 35 | B46: Евгений | D46: 500 | E46: 4900 | F46: =Таблица1[[#This Row],[Buy In]]/100+Таблица1[[#This Row],[ITM]]/100 -> 54
A47: 36 | B47: Гацко Федор | D47: 5200 | F47: =Таблица1[[#This Row],[Buy In]]/100+Таблица1[[#This Row],[ITM]]/100 -> 52
A48: 37 | B48: Рожановский Борис | D48: 5200 | F48: =Таблица1[[#This Row],[Buy In]]/100+Таблица1[[#This Row],[ITM]]/100 -> 52
A49: 38 | B49: Вайт Сергей | D49: 5000 | F49: =Таблица1[[#This Row],[Buy In]]/100+Таблица1[[#This Row],[ITM]]/100 -> 50
A50: 39 | B50: Жлоба Павел | D50: 2200 | E50: 2550 | F50: =Таблица1[[#This Row],[Buy In]]/100+Таблица1[[#This Row],[ITM]]/100 -> 47.5
A51: 40 | B51: Подковский Артем | D51: 4500 | F51: =Таблица1[[#This Row],[Buy In]]/100+Таблица1[[#This Row],[ITM]]/100 -> 45
A52: 41 | B52: Иванов Вова | D52: 4000 | F52: =Таблица1[[#This Row],[Buy In]]/100+Таблица1[[#This Row],[ITM]]/100 -> 40
A53: 42 | B53: Николаев Леонид | D53: 4000 | F53: =Таблица1[[#This Row],[Buy In]]/100+Таблица1[[#This Row],[ITM]]/100 -> 40
A54: 43 | B54: Серега2 | D54: 4000 | F54: =Таблица1[[#This Row],[Buy In]]/100+Таблица1[[#This Row],[ITM]]/100 -> 40
A55: 44 | B55: Сокирко Дима | D55: 4000 | F55: =Таблица1[[#This Row],[Buy In]]/100+Таблица1[[#This Row],[ITM]]/100 -> 40
A56: 45 | B56: Шовковый Владислав | D56: 4000 | F56: =Таблица1[[#This Row],[Buy In]]/100+Таблица1[[#This Row],[ITM]]/100 -> 40
A57: 46 | B57: Педченко Паша | D57: 3700 | F57: =Таблица1[[#This Row],[Buy In]]/100+Таблица1[[#This Row],[ITM]]/100 -> 37
A58: 47 | B58: Выговский Даниил | D58: 3500 | F58: =Таблица1[[#This Row],[Buy In]]/100+Таблица1[[#This Row],[ITM]]/100 -> 35
A59: 48 | B59: Гоголев Стас | D59: 1000 | E59: 2500 | F59: =Таблица1[[#This Row],[Buy In]]/100+Таблица1[[#This Row],[ITM]]/100 -> 35
A60: 49 | B60: Букмекер Андрей | D60: 500 | E60: 2950 | F60: =Таблица1[[#This Row],[Buy In]]/100+Таблица1[[#This Row],[ITM]]/100 -> 34.5
A61: 50 | B61: Егодин Вадим | D61: 1500 | E61: 1950 | F61: =Таблица1[[#This Row],[Buy In]]/100+Таблица1[[#This Row],[ITM]]/100 -> 34.5
A62: 51 | B62: Бурлачук Андрей | D62: 800 | E62: 2600 | F62: =Таблица1[[#This Row],[Buy In]]/100+Таблица1[[#This Row],[ITM]]/100 -> 34
A63: 52 | B63: Смертенко Евгений | D63: 3200 | F63: =Таблица1[[#This Row],[Buy In]]/100+Таблица1[[#This Row],[ITM]]/100 -> 32
A64: 53 | B64: Кефиров Артем | D64: 3000 | F64: =Таблица1[[#This Row],[Buy In]]/100+Таблица1[[#This Row],[ITM]]/100 -> 30
A65: 54 | B65: Кириченко Евгений | D65: 3000 | F65: =Таблица1[[#This Row],[Buy In]]/100+Таблица1[[#This Row],[ITM]]/100 -> 30
A66: 55 | B66: Недвига Виталий | D66: 3000 | F66: =Таблица1[[#This Row],[Buy In]]/100+Таблица1[[#This Row],[ITM]]/100 -> 30
A67: 56 | B67: Подзолкин Антон | D67: 3000 | F67: =Таблица1[[#This Row],[Buy In]]/100+Таблица1[[#This Row],[ITM]]/100 -> 30
A68: 57 | B68: Захарец Игорь | D68: 2800 | F68: =Таблица1[[#This Row],[Buy In]]/100+Таблица1[[#This Row],[ITM]]/100 -> 28
A69: 58 | B69: Порохнюк Андрей | D69: 2800 | F69: =Таблица1[[#This Row],[Buy In]]/100+Таблица1[[#This Row],[ITM]]/100 -> 28
A70: 59 | B70: Тесленко Сергей | D70: 2800 | F70: =Таблица1[[#This Row],[Buy In]]/100+Таблица1[[#This Row],[ITM]]/100 -> 28
A71: 60 | B71: Абдулаев Исрафим | D71: 2400 | F71: =Таблица1[[#This Row],[Buy In]]/100+Таблица1[[#This Row],[ITM]]/100 -> 24
A72: 61 | B72: Закрепа Антон | D72: 2400 | F72: =Таблица1[[#This Row],[Buy In]]/100+Таблица1[[#This Row],[ITM]]/100 -> 24
A73: 62 | B73: Столярчук Андрей | D73: 2400 | F73: =Таблица1[[#This Row],[Buy In]]/100+Таблица1[[#This Row],[ITM]]/100 -> 24
A74: 63 | B74: Боринец Алексей | D74: 2000 | F74: =Таблица1[[#This Row],[Buy In]]/100+Таблица1[[#This Row],[ITM]]/100 -> 20
A75: 64 | B75: Вовк Павел | D75: 2000 | F75: =Таблица1[[#This Row],[Buy In]]/100+Таблица1[[#This Row],[ITM]]/100 -> 20
A76: 65 | B76: Гаврилюк Рустам | D76: 2000 | F76: =Таблица1[[#This Row],[Buy In]]/100+Таблица1[[#This Row],[ITM]]/100 -> 20
A77: 66 | B77: Ким | D77: 2000 | F77: =Таблица1[[#This Row],[Buy In]]/100+Таблица1[[#This Row],[ITM]]/100 -> 20
A78: 67 | B78: Куприн Тарас | D78: 2000 | F78: =Таблица1[[#This Row],[Buy In]]/100+Таблица1[[#This Row],[ITM]]/100 -> 20
A79: 68 | B79: Мельник Кирилл | D79: 2000 | F79: =Таблица1[[#This Row],[Buy In]]/100+Таблица1[[#This Row],[ITM]]/100 -> 20
A80: 69 | B80: Мудрицкий Денис | D80: 2000 | F80: =Таблица1[[#This Row],[Buy In]]/100+Таблица1[[#This Row],[ITM]]/100 -> 20
A81: 70 | B81: Пилипенко Антон | D81: 2000 | F81: =Таблица1[[#This Row],[Buy In]]/100+Таблица1[[#This Row],[ITM]]/100 -> 20
A82: 71 | B82: Пыталев Алексей | D82: 2000 | F82: =Таблица1[[#This Row],[Buy In]]/100+Таблица1[[#This Row],[ITM]]/100 -> 20
A83: 72 | B83: Стуканов Игорь | D83: 2000 | F83: =Таблица1[[#This Row],[Buy In]]/100+Таблица1[[#This Row],[ITM]]/100 -> 20
A84: 73 | B84: Сухомлинов Александр | D84: 2000 | F84: =Таблица1[[#This Row],[Buy In]]/100+Таблица1[[#This Row],[ITM]]/100 -> 20
A85: 74 | B85: Толстой Слава | D85: 2000 | F85: =Таблица1[[#This Row],[Buy In]]/100+Таблица1[[#This Row],[ITM]]/100 -> 20
A86: 75 | B86: Чеберко Вадим | D86: 2000 | F86: =Таблица1[[#This Row],[Buy In]]/100+Таблица1[[#This Row],[ITM]]/100 -> 20
A87: 76 | B87: Шевцов Владимир | D87: 2000 | F87: =Таблица1[[#This Row],[Buy In]]/100+Таблица1[[#This Row],[ITM]]/100 -> 20
A88: 77 | B88: Шипа Майк | D88: 2000 | F88: =Таблица1[[#This Row],[Buy In]]/100+Таблица1[[#This Row],[ITM]]/100 -> 20
A89: 78 | B89: Штанько Александр | D89: 2000 | F89: =Таблица1[[#This Row],[Buy In]]/100+Таблица1[[#This Row],[ITM]]/100 -> 20
A90: 79 | B90: Николаенко Слава | D90: 1800 | F90: =Таблица1[[#This Row],[Buy In]]/100+Таблица1[[#This Row],[ITM]]/100 -> 18
A91: 80 | B91: Билостуцкий Сергей | D91: 1500 | F91: =Таблица1[[#This Row],[Buy In]]/100+Таблица1[[#This Row],[ITM]]/100 -> 15
A92: 81 | B92: Козаченко Анатолий | D92: 1300 | F92: =Таблица1[[#This Row],[Buy In]]/100+Таблица1[[#This Row],[ITM]]/100 -> 13
A93: 82 | B93: Богдан | D93: 1200 | F93: =Таблица1[[#This Row],[Buy In]]/100+Таблица1[[#This Row],[ITM]]/100 -> 12
A94: 83 | B94: Горюнов Евгений | D94: 1200 | F94: =Таблица1[[#This Row],[Buy In]]/100+Таблица1[[#This Row],[ITM]]/100 -> 12
A95: 84 | B95: Ерашов Сергей | D95: 1200 | F95: =Таблица1[[#This Row],[Buy In]]/100+Таблица1[[#This Row],[ITM]]/100 -> 12
A96: 85 | B96: Зименко Иван | D96: 1200 | F96: =Таблица1[[#This Row],[Buy In]]/100+Таблица1[[#This Row],[ITM]]/100 -> 12
A97: 86 | B97: Компаниец Олег | D97: 1200 | F97: =Таблица1[[#This Row],[Buy In]]/100+Таблица1[[#This Row],[ITM]]/100 -> 12
A98: 87 | B98: Михеев Алексей | D98: 1200 | F98: =Таблица1[[#This Row],[Buy In]]/100+Таблица1[[#This Row],[ITM]]/100 -> 12
A99: 88 | B99: Эсхан | D99: 1200 | F99: =Таблица1[[#This Row],[Buy In]]/100+Таблица1[[#This Row],[ITM]]/100 -> 12
A100: 89 | B100: Анцев Виктор | D100: 1000 | F100: =Таблица1[[#This Row],[Buy In]]/100+Таблица1[[#This Row],[ITM]]/100 -> 10
A101: 90 | B101: Береснов | D101: 1000 | F101: =Таблица1[[#This Row],[Buy In]]/100+Таблица1[[#This Row],[ITM]]/100 -> 10
A102: 91 | B102: Бороневич Денис | D102: 1000 | F102: =Таблица1[[#This Row],[Buy In]]/100+Таблица1[[#This Row],[ITM]]/100 -> 10
A103: 92 | B103: Бочаров Антон | D103: 1000 | F103: =Таблица1[[#This Row],[Buy In]]/100+Таблица1[[#This Row],[ITM]]/100 -> 10
A104: 93 | B104: Володя | D104: 1000 | F104: =Таблица1[[#This Row],[Buy In]]/100+Таблица1[[#This Row],[ITM]]/100 -> 10
A105: 94 | B105: Дядя Коля | D105: 1000 | F105: =Таблица1[[#This Row],[Buy In]]/100+Таблица1[[#This Row],[ITM]]/100 -> 10
A106: 95 | B106: Емельянцев Андрей | D106: 1000 | F106: =Таблица1[[#This Row],[Buy In]]/100+Таблица1[[#This Row],[ITM]]/100 -> 10
A107: 96 | B107: Емченко Сергей | D107: 1000 | F107: =Таблица1[[#This Row],[Buy In]]/100+Таблица1[[#This Row],[ITM]]/100 -> 10
A108: 97 | B108: Иванов Олег | D108: 1000 | F108: =Таблица1[[#This Row],[Buy In]]/100+Таблица1[[#This Row],[ITM]]/100 -> 10
A109: 98 | B109: Козарь Антон | D109: 1000 | F109: =Таблица1[[#This Row],[Buy In]]/100+Таблица1[[#This Row],[ITM]]/100 -> 10
A110: 99 | B110: Пеленье Игорь | D110: 1000 | F110: =Таблица1[[#This Row],[Buy In]]/100+Таблица1[[#This Row],[ITM]]/100 -> 10
A111: 100 | B111: Тенгаев Александр | D111: 1000 | F111: =Таблица1[[#This Row],[Buy In]]/100+Таблица1[[#This Row],[ITM]]/100 -> 10
A112: 101 | B112: Трофимович Саша | D112: 1000 | F112: =Таблица1[[#This Row],[Buy In]]/100+Таблица1[[#This Row],[ITM]]/100 -> 10
A113: 102 | B113: Уланов Роман | D113: 1000 | F113: =Таблица1[[#This Row],[Buy In]]/100+Таблица1[[#This Row],[ITM]]/100 -> 10
A114: 103 | B114: Фунт | D114: 1000 | F114: =Таблица1[[#This Row],[Buy In]]/100+Таблица1[[#This Row],[ITM]]/100 -> 10
A115: 104 | B115: Биболетов Аскар | D115: 800 | F115: =Таблица1[[#This Row],[Buy In]]/100+Таблица1[[#This Row],[ITM]]/100 -> 8
A116: 105 | B116: Бойко Владимир | D116: 800 | F116: =Таблица1[[#This Row],[Buy In]]/100+Таблица1[[#This Row],[ITM]]/100 -> 8
A117: 106 | B117: Ковколюк Виталий | D117: 800 | F117: =Таблица1[[#This Row],[Buy In]]/100+Таблица1[[#This Row],[ITM]]/100 -> 8
A118: 107 | B118: Кузюк Александр | D118: 800 | F118: =Таблица1[[#This Row],[Buy In]]/100+Таблица1[[#This Row],[ITM]]/100 -> 8
A119: 108 | B119: Питулей Ярослав | D119: 800 | F119: =Таблица1[[#This Row],[Buy In]]/100+Таблица1[[#This Row],[ITM]]/100 -> 8
A120: 109 | B120: Руденко Юра | D120: 800 | F120: =Таблица1[[#This Row],[Buy In]]/100+Таблица1[[#This Row],[ITM]]/100 -> 8
A121: 110 | B121: Смирнов Александр | D121: 800 | F121: =Таблица1[[#This Row],[Buy In]]/100+Таблица1[[#This Row],[ITM]]/100 -> 8
A122: 111 | B122: Старухин Денис | D122: 800 | F122: =Таблица1[[#This Row],[Buy In]]/100+Таблица1[[#This Row],[ITM]]/100 -> 8
A123: 112 | B123: Bolgrey Андрей | D123: 500 | F123: =Таблица1[[#This Row],[Buy In]]/100+Таблица1[[#This Row],[ITM]]/100 -> 5
A124: 113 | B124: Витранюк Юрий | D124: 500 | F124: =Таблица1[[#This Row],[Buy In]]/100+Таблица1[[#This Row],[ITM]]/100 -> 5
A125: 114 | B125: Гончарук Сергей | D125: 500 | F125: =Таблица1[[#This Row],[Buy In]]/100+Таблица1[[#This Row],[ITM]]/100 -> 5
A126: 115 | B126: Игнатов Слава | D126: 500 | F126: =Таблица1[[#This Row],[Buy In]]/100+Таблица1[[#This Row],[ITM]]/100 -> 5
A127: 116 | B127: Купит Михаил | D127: 500 | F127: =Таблица1[[#This Row],[Buy In]]/100+Таблица1[[#This Row],[ITM]]/100 -> 5
A128: 117 | B128: Куц Богдан | D128: 500 | F128: =Таблица1[[#This Row],[Buy In]]/100+Таблица1[[#This Row],[ITM]]/100 -> 5
A129: 118 | B129: Табаков Виталий | D129: 500 | F129: =Таблица1[[#This Row],[Buy In]]/100+Таблица1[[#This Row],[ITM]]/100 -> 5
A130: 119 | B130: Ткачук Александр | D130: 500 | F130: =Таблица1[[#This Row],[Buy In]]/100+Таблица1[[#This Row],[ITM]]/100 -> 5
A131: 120 | B131: Чабан Андрей | D131: 500 | F131: =Таблица1[[#This Row],[Buy In]]/100+Таблица1[[#This Row],[ITM]]/100 -> 5
A132: 121 | B132: Чепинога Влад | D132: 500 | F132: =Таблица1[[#This Row],[Buy In]]/100+Таблица1[[#This Row],[ITM]]/100 -> 5
F133: =Таблица1[[#This Row],[Buy In]]/100+Таблица1[[#This Row],[ITM]]/100 -> 0
B137: ИТОГО | D137: =SUM(Таблица1[Buy In]) -> 329000 | E137: =SUM(Таблица1[ITM]) -> 262100 | F137: =SUM(Таблица1[[Rating point ]]) -> 5911
